bitfinex/quotes_SOLUSD_20251231
["timestamp","ask_amount","ask_price","bid_price","bid_amount"]
[1767195058441,0.70687623,125.35,125.32,8.83403065]
[1767195058609,3.88851325,125.35,125.32,8.83403065]
[1767195059228,0.70687623,125.35,125.32,8.83403065]
[1767195059418,3.88851325,125.35,125.32,8.83403065]
[1767195060442,107.46768131,125.42,125.34,3.18163702]
[1767195060443,114.1134137,125.42,125.34,3.18163702]
[1767195060729,3.88851325,125.38,125.35,0.65449158]
[1767195061313,0.70687623,125.36,125.33,0.65449158]
[1767195061521,3.18163702,125.37,125.34,0.65449158]
[1767195061723,0.70687623,125.38,125.34,3.18163702]
[1767195061724,3.88851325,125.38,125.34,3.18163702]
[1767195061916,3.88851325,125.38,125.35,0.65449158]
[1767195062118,0.70687623,125.39,125.36,0.65449158]
[1767195062322,3.88851325,125.39,125.36,0.65449158]
[1767195062940,0.70687623,125.38,125.35,8.63189952]
[1767195064814,0.70687623,125.38,125.35,11.81353654]
[1767195065408,0.70687623,125.38,125.35,11.15904496]
[1767195065613,0.70687623,125.38,125.35,8.63189952]
[1767195065837,0.70687623,125.38,125.35,11.81353654]
[1767195067026,3.88851325,125.38,125.35,0.65449158]
[1767195067918,3.88851325,125.38,125.35,8.63214022]
[1767195069326,0.70687623,125.38,125.35,8.63214022]
[1767195071028,3.88851325,125.38,125.35,0.65449158]
[1767195071237,0.70687623,125.35,125.32,0.2]
[1767195071431,3.88851325,125.33,125.31,0.2]
[1767195071641,3.88851325,125.34,125.31,0.85449158]
[1767195073224,3.18163702,125.33,125.31,0.85449158]
[1767195073730,3.18163702,125.34,125.31,0.85449158]
[1767195073931,3.88851325,125.34,125.31,0.85449158]
[1767195074442,3.88851325,125.34,125.31,8.83467603]
[1767195077019,3.18163702,125.35,125.32,0.65449158]
[1767195077643,3.88851325,125.35,125.32,0.65449158]
[1767195078343,0.70687623,125.34,125.31,8.83467603]
[1767195079227,0.71457151,125.36,125.32,8.64684587]
[1767195079546,3.89620853,125.36,125.32,8.64684587]
[1767195080829,3.18163702,125.35,125.32,8.64684587]
[1767195082049,3.18163702,125.35,125.32,7.97943318]
[1767195082253,3.18163702,125.35,125.33,0.71786149]
[1767195082456,0.69728626,125.38,125.33,0.71786149]
[1767195082631,3.87892328,125.37,125.33,0.71786149]
[1767195082831,3.87892328,125.36,125.33,0.71786149]
[1767195084455,3.87892328,125.35,125.32,0.71786149]
[1767195084758,5.67280812,125.35,125.32,0.71786149]
[1767195085337,4.97552186,125.34,125.32,0.71786149]
[1767195086463,0.69728626,125.35,125.32,0.71786149]
[1767195086764,4.97552186,125.34,125.32,0.71786149]
[1767195087637,5.67280812,125.33,125.31,0.2]
[1767195087833,4.97552186,125.32,125.31,0.2]
[1767195088045,5.67280812,125.33,125.31,0.2]
[1767195088260,0.69728626,125.33,125.31,0.2]
[1767195088434,4.97552186,125.33,125.31,0.2]
[1767195088636,4.97552186,125.33,125.31,0.91786149]
[1767195090770,5.67280812,125.32,125.31,0.2]
[1767195090951,5.67280812,125.32,125.29,0.71786149]
[1767195091157,4.97552186,125.31,125.28,8.8996707]
[1767195091467,4.97552186,125.31,125.28,0.91786149]
[1767195091708,5.67280812,125.31,125.28,0.91786149]
[1767195091962,4.97552186,125.31,125.28,0.91786149]
[1767195092143,4.97552186,125.31,125.29,0.71786149]
[1767195093340,0.69728626,125.32,125.29,0.71786149]
[1767195093540,4.97552186,125.31,125.29,0.71786149]
[1767195095046,0.69728626,125.32,125.29,0.71786149]
[1767195095249,4.97552186,125.31,125.29,0.71786149]
[1767195095753,0.69728626,125.32,125.29,0.71786149]
[1767195096153,4.97552186,125.3,125.28,0.2]
[1767195096459,0.69728626,125.28,125.25,0.2]
[1767195096677,5.67280812,125.28,125.25,8.18396981]
[1767195096842,4.97552186,125.29,125.26,0.71786149]
[1767195097840,14.58,125.31,125.26,0.71786149]
[1767195098046,4.97552186,125.29,125.26,0.71786149]
[1767195098268,4.97552186,125.29,125.26,8.701255]
[1767195098775,14.58,125.31,125.26,7.98339351]
[1767195098977,14.58,125.31,125.26,8.701255]
[1767195098978,4.97552186,125.29,125.26,8.701255]
[1767195099159,5.3086778,125.29,125.26,7.98339351]
[1767195099467,4.97552186,125.29,125.26,8.701255]
[1767195099670,5.3086778,125.29,125.26,8.701255]
[1767195099858,5.3086778,125.29,125.26,7.98339351]
[1767195100065,5.3086778,125.29,125.25,8.90179514]
[1767195100370,0.33315594,125.3,125.25,0.2]
[1767195100572,14.58,125.3,125.26,0.71786149]
[1767195100746,19.8886778,125.3,125.26,13.67671013]
[1767195101268,5.3086778,125.3,125.26,13.67671013]
[1767195101968,0.33315594,125.3,125.26,8.70118827]
[1767195102267,5.3086778,125.3,125.26,8.70118827]
[1767195102459,4.97552186,125.29,125.26,8.70118827]
[1767195102647,0.33315594,125.3,125.26,8.70118827]
[1767195102945,4.97552186,125.29,125.26,8.70118827]
[1767195103152,5.3086778,125.29,125.26,8.70118827]
[1767195104352,5.3086778,125.29,125.26,0.71786149]
[1767195105046,0.33315594,125.29,125.26,0.71786149]
[1767195105242,5.3086778,125.29,125.26,0.71786149]
[1767195105666,0.33315594,125.29,125.26,0.71786149]
[1767195105970,5.3086778,125.29,125.26,0.71786149]
[1767195106175,0.33315594,125.29,125.26,0.71786149]
[1767195106353,4.97552186,125.29,125.27,0.71786149]
[1767195107252,4.97552186,125.29,125.26,0.70736452]
[1767195107448,5.3086778,125.28,125.25,0.2]
[1767195107678,5.3086778,125.28,125.25,8.89136045]
[1767195107679,0.33315594,125.28,125.25,8.89136045]
[1767195107848,4.97552186,125.29,125.25,8.89136045]
[1767195108049,5.3086778,125.29,125.25,8.89136045]
[1767195108249,5.3086778,125.28,125.25,0.2]
[1767195108468,4.97552186,125.27,125.25,0.2]
[1767195108670,0.33315594,125.28,125.25,0.90736452]
[1767195108872,5.3086778,125.29,125.25,0.90736452]
[1767195109056,5.3086778,125.28,125.25,0.90736452]
[1767195109572,117.88,125.3,125.25,5.17552186]
[1767195109775,117.88,125.3,125.26,5.68288638]
[1767195109776,123.1886778,125.3,125.26,5.68288638]
[1767195110080,4.97552186,125.29,125.26,0.70736452]
[1767195110573,5.3086778,125.29,125.26,0.70736452]
[1767195111479,5.3086778,125.28,125.25,0.2]
[1767195111691,0.33315594,125.28,125.25,0.2]
[1767195111857,4.97552186,125.27,125.25,0.2]
[1767195112055,4.97552186,125.27,125.25,0.91056196]
[1767195112246,0.33315594,125.28,125.25,0.91056196]
[1767195112448,4.97552186,125.27,125.25,0.91056196]
[1767195113066,0.33315594,125.28,125.25,0.91056196]
[1767195113270,4.97552186,125.27,125.25,0.91056196]
[1767195113480,0.33315594,125.28,125.25,0.91056196]
[1767195113979,5.3086778,125.28,125.25,0.91056196]
[1767195114883,0.33315594,125.28,125.25,0.91056196]
[1767195115066,5.3086778,125.28,125.25,0.91056196]
[1767195116463,0.33315594,125.28,125.25,0.91056196]
[1767195116768,4.97552186,125.27,125.25,0.91056196]
[1767195117171,4.97552186,125.27,125.25,0.2]
[1767195117370,4.97552186,125.27,125.25,0.91056196]
[1767195118190,5.3086778,125.28,125.25,0.91056196]
[1767195119282,4.97552186,125.27,125.25,0.91056196]
[1767195120192,5.3086778,125.28,125.25,0.91056196]
[1767195120387,117.88,125.3,125.25,0.2]
[1767195120597,0.33315594,125.29,125.26,0.71056196]
[1767195121296,5.3086778,125.29,125.26,0.71056196]
[1767195121795,0.33315594,125.28,125.25,0.91056196]
[1767195122793,5.3086778,125.28,125.25,0.91056196]
[1767195124270,0.33315594,125.28,125.25,0.91056196]
[1767195124490,5.3086778,125.29,125.26,0.71056196]
[1767195124691,4.97552186,125.28,125.25,0.91056196]
[1767195125266,19.55552186,125.28,125.25,0.91056196]
[1767195125566,5.3086778,125.28,125.25,0.91056196]
[1767195125787,5.3086778,125.27,125.25,0.2]
[1767195125971,19.8886778,125.27,125.25,0.2]
[1767195126174,14.91315594,125.27,125.25,0.2]
[1767195126375,19.8886778,125.27,125.25,0.2]
[1767195127068,14.91315594,125.27,125.25,0.2]
[1767195127283,19.8886778,125.27,125.25,0.2]
[1767195127762,0.33315594,125.29,125.25,0.91056196]
[1767195127993,19.55552186,125.28,125.25,0.91056196]
[1767195128293,19.8886778,125.28,125.25,0.91056196]
[1767195130288,5.3086778,125.26,125.23,0.2]
[1767195130474,4.97552186,125.25,125.23,0.2]
[1767195130865,14.91315594,125.26,125.23,0.91056196]
[1767195131069,4.97552186,125.25,125.23,0.91056196]
[1767195131274,0.33315594,125.23,125.21,0.2]
[1767195131480,4.97552186,125.22,125.19,0.2]
[1767195131681,14.58,125.23,125.18,0.91056196]
[1767195131682,4.97552186,125.2,125.18,0.91056196]
[1767195131989,14.58,125.21,125.18,0.91056196]
[1767195132192,4.97552186,125.2,125.18,0.91056196]
[1767195132790,14.58,125.21,125.19,0.71056196]
[1767195132989,4.97552186,125.2,125.19,0.71056196]
[1767195133192,14.58,125.21,125.19,0.71056196]
[1767195133493,4.97552186,125.2,125.19,0.71056196]
[1767195133688,14.58,125.21,125.19,0.71056196]
[1767195133902,19.55552186,125.21,125.19,0.71056196]
[1767195134199,0.33315594,125.2,125.18,0.2]
[1767195134394,4.97552186,125.19,125.16,0.71056196]
[1767195134568,4.97552186,125.18,125.16,0.71056196]
[1767195134774,14.58,125.19,125.16,0.71056196]
[1767195134994,4.97552186,125.18,125.16,0.71056196]
[1767195135191,14.71315594,125.19,125.16,0.71056196]
[1767195135382,4.97552186,125.18,125.16,0.71056196]
[1767195135894,14.71315594,125.19,125.16,0.71056196]
[1767195136095,14.58,125.19,125.16,0.71056196]
[1767195136291,4.97552186,125.18,125.16,0.71056196]
[1767195136598,14.58,125.19,125.16,0.71056196]
[1767195136772,4.97552186,125.18,125.16,0.71056196]
[1767195138275,14.71315594,125.19,125.14,0.71056196]
[1767195138478,0.13315594,125.19,125.14,0.71056196]
[1767195138691,19.57552186,125.18,125.14,0.71056196]
[1767195139698,4.97552186,125.15,125.12,0.16684406]
[1767195140001,4.97552186,125.13,125.12,0.16684406]
[1767195140976,14.6,125.14,125.12,0.16684406]
[1767195141178,103.3,125.17,125.12,0.82352097]
[1767195141377,4.97552186,125.15,125.12,0.82352097]
[1767195142183,14.6,125.16,125.12,0.82352097]
[1767195142685,4.97552186,125.15,125.12,0.82352097]
[1767195142890,14.6,125.16,125.12,0.82352097]
[1767195143093,4.97552186,125.15,125.12,0.82352097]
[1767195143602,14.6,125.16,125.12,0.82352097]
[1767195143814,4.97552186,125.15,125.12,0.82352097]
[1767195143980,19.57552186,125.16,125.12,0.82352097]
[1767195144181,14.6,125.16,125.12,0.16684406]
[1767195144402,4.97552186,125.13,125.12,0.16684406]
[1767195144591,14.6,125.14,125.12,0.16684406]
[1767195144907,4.97552186,125.14,125.12,0.16684406]
[1767195145482,14.6,125.15,125.12,0.82352097]
[1767195145806,19.57552186,125.15,125.12,0.82352097]
[1767195146186,103.3,125.17,125.13,0.65667691]
[1767195146388,4.97552186,125.16,125.13,0.65667691]
[1767195146680,3.19392637,125.14,125.1,0.65667691]
[1767195146909,3.19392637,125.13,125.1,0.65667691]
[1767195147406,3.19392637,125.12,125.1,0.65667691]
[1767195147711,3.19392637,125.12,125.07,11.18921722]
[1767195147712,3.19392637,125.11,125.07,0.65667691]
[1767195147886,3.19392637,125.11,125.07,11.8459995]
[1767195148083,3.19392637,125.16,125.08,0.65667691]
[1767195148410,117.9,125.15,125.08,0.65667691]
[1767195148791,3.19392637,125.12,125.08,0.65667691]
[1767195149304,3.19392637,125.12,125.09,0.65667691]
[1767195149706,14.6,125.13,125.09,0.65667691]
[1767195150006,3.19392637,125.12,125.09,0.65667691]
[1767195150504,14.6,125.13,125.09,0.65667691]
[1767195150713,14.6,125.13,125.1,0.65667691]
[1767195150714,3.19392637,125.13,125.1,0.65667691]
[1767195151089,103.3,125.15,125.1,0.65667691]
[1767195151403,3.19392637,125.13,125.1,0.65667691]
[1767195151607,3.19392637,125.15,125.12,0.65667691]
[1767195151784,14.6,125.16,125.12,0.65667691]
[1767195152185,3.19392637,125.15,125.12,0.65667691]
[1767195152681,3.19392637,125.14,125.12,0.65667691]
[1767195152915,14.6,125.16,125.12,0.65667691]
[1767195153205,3.19392637,125.14,125.12,0.65667691]
[1767195153403,8.35013837,125.19,125.12,0.65667691]
[1767195153605,0.67650402,125.16,125.12,0.65667691]
[1767195153805,3.19392637,125.16,125.12,0.65667691]
[1767195153983,3.19392637,125.15,125.12,0.65667691]
[1767195154187,3.19392637,125.13,125.09,0.65667691]
[1767195154385,0.67650402,125.14,125.09,8.65085401]
[1767195154581,3.19392637,125.14,125.11,0.65667691]
[1767195155205,3.19392637,125.13,125.05,14.6]
[1767195155392,3.19392637,125.13,125.09,0.65667691]
[1767195155589,0.67650402,125.14,125.09,0.65667691]
[1767195155590,0.67650402,125.14,125.1,0.65667691]
[1767195155790,0.67650402,125.14,125.09,7.99413516]
[1767195155791,15.27650402,125.17,125.12,0.65667691]
[1767195155998,3.19392637,125.16,125.12,0.65667691]
[1767195156411,14.6,125.17,125.12,0.65667691]
[1767195156604,3.19392637,125.2,125.16,0.65667691]
[1767195156805,0.67650402,125.21,125.17,0.65667691]
[1767195157006,3.19392637,125.19,125.17,0.65667691]
[1767195157312,3.19392637,125.19,125.14,7.99076595]
[1767195157313,3.87043039,125.18,125.14,0.65667691]
[1767195157516,3.19392637,125.18,125.14,0.65667691]
[1767195157815,3.19392637,125.18,125.15,0.65667691]
[1767195158025,17.79392637,125.19,125.16,0.65667691]
[1767195158390,14.6,125.19,125.16,0.65667691]
[1767195158586,17.79392637,125.19,125.16,0.65667691]
[1767195158814,14.6,125.19,125.16,0.65667691]
[1767195159108,17.79392637,125.19,125.16,0.65667691]
[1767195160016,17.79392637,125.19,125.14,7.99079256]
[1767195160017,3.19392637,125.18,125.15,0.65667691]
[1767195160386,14.6,125.19,125.16,0.65667691]
[1767195161089,3.19392637,125.2,125.16,0.65667691]
[1767195161286,3.19392637,125.19,125.16,0.65667691]
[1767195162011,15.27650402,125.21,125.17,0.65667691]
[1767195162485,18.47043039,125.21,125.17,0.65667691]
[1767195163293,15.27650402,125.21,125.17,0.65667691]
[1767195163501,3.19392637,125.2,125.17,0.65667691]
[1767195164015,3.19392637,125.18,125.14,0.65667691]
[1767195164217,3.19392637,125.18,125.15,0.65667691]
[1767195165200,3.19392637,125.16,125.13,0.65667691]
[1767195165409,3.87043039,125.17,125.13,0.65667691]
[1767195165916,0.67650402,125.17,125.13,0.65667691]
[1767195166211,3.87043039,125.17,125.13,0.65667691]
[1767195166410,3.87043039,125.16,125.12,8.64864]
[1767195166618,0.67650402,125.16,125.12,11.84256637]
[1767195166816,0.67650402,125.16,125.13,0.65667691]
[1767195167016,0.67650402,125.15,125.11,8.64925102]
[1767195167210,0.67650402,125.15,125.12,3.85060328]
[1767195167409,3.87043039,125.16,125.12,3.85060328]
[1767195167611,3.87043039,125.16,125.12,0.65667691]
[1767195167917,3.87043039,125.15,125.1,8.64998027]
[1767195168098,3.19392637,125.15,125.1,3.85060328]
[1767195168293,0.67650402,125.14,125.1,3.85060328]
[1767195168730,3.87043039,125.14,125.1,0.65667691]
[1767195169106,0.67650402,125.14,125.1,0.65667691]
[1767195169415,0.67650402,125.14,125.1,11.84413458]
[1767195169720,0.67650402,125.15,125.11,0.65667691]
[1767195169918,0.67650402,125.15,125.11,3.85060328]
[1767195170421,3.87043039,125.15,125.11,3.85060328]
[1767195170623,3.87043039,125.15,125.11,0.65667691]
[1767195170921,3.87043039,125.14,125.09,11.18808665]
[1767195171097,3.87043039,125.14,125.1,0.65667691]
[1767195172125,3.87043039,125.14,125.1,8.65022771]
[1767195172426,3.87043039,125.14,125.1,8.71623664]
[1767195172608,3.87650185,125.15,125.11,0.72268584]
[1767195172804,0.68257548,125.15,125.11,0.72268584]
[1767195173127,3.87650185,125.16,125.12,0.72268584]
[1767195173300,3.87650185,125.15,125.1,11.91016301]
[1767195173626,0.68257548,125.14,125.11,0.72268584]
[1767195174277,3.87650185,125.13,125.09,8.7168975]
[1767195174526,3.19392637,125.13,125.1,0.72268584]
[1767195174899,0.68257548,125.13,125.09,0.72268584]
[1767195175104,3.87650185,125.13,125.09,0.72268584]
[1767195175527,0.68257548,125.13,125.09,0.72268584]
[1767195175728,3.19392637,125.12,125.09,0.72268584]
[1767195175928,0.68257548,125.13,125.09,8.71683891]
[1767195176103,3.19392637,125.12,125.09,8.71683891]
[1767195176305,3.19392637,125.12,125.1,0.72268584]
[1767195176627,3.19392637,125.13,125.1,0.72268584]
[1767195177411,0.68257548,125.15,125.1,0.72268584]
[1767195177412,3.19392637,125.12,125.1,0.72268584]
[1767195177620,3.19392637,125.13,125.1,0.72268584]
[1767195177933,3.19392637,125.12,125.1,0.72268584]
[1767195178332,3.19392637,125.13,125.1,0.72268584]
[1767195179048,3.87650185,125.13,125.09,8.71683891]
[1767195179342,3.19392637,125.12,125.09,0.72268584]
[1767195179526,3.87650185,125.12,125.09,0.72268584]
[1767195179927,14.6,125.15,125.07,8.71818458]
[1767195179928,3.87650185,125.11,125.07,8.71818458]
[1767195180322,3.87650185,125.11,125.07,0.72268584]
[1767195180523,3.19392637,125.11,125.07,0.72268584]
[1767195180729,3.19392637,125.1,125.07,0.72268584]
[1767195180937,3.19392637,125.09,125.07,0.72268584]
[1767195181160,14.6,125.13,125.08,3.19392637]
[1767195181316,3.19392637,125.12,125.09,0.72268584]
[1767195181516,3.87650185,125.16,125.1,0.72268584]
[1767195181844,3.87650185,125.16,125.11,7.99296618]
[1767195181845,14.6,125.15,125.11,7.99296618]
[1767195182017,17.79392637,125.15,125.12,0.72268584]
[1767195182212,14.6,125.15,125.12,0.72268584]
[1767195182515,0.68257548,125.18,125.13,0.72268584]
[1767195182716,14.6,125.19,125.13,0.72268584]
[1767195182717,3.19392637,125.17,125.13,0.72268584]
[1767195183242,15.28257548,125.19,125.13,0.72268584]
[1767195183243,3.19392637,125.16,125.13,0.72268584]
[1767195184529,3.19392637,125.15,125.13,0.72268584]
[1767195185044,3.19392637,125.16,125.13,0.72268584]
[1767195185442,3.19392637,125.15,125.13,0.72268584]
[1767195187818,3.19392637,125.14,125.1,7.99332122]
[1767195188047,3.19392637,125.14,125.11,0.72268584]
[1767195188431,3.19392637,125.13,125.11,0.72268584]
[1767195188833,3.19392637,125.13,125.1,0.72268584]
[1767195189037,3.19392637,125.12,125.1,0.72268584]
[1767195189263,3.19392637,125.11,125.08,0.72268584]
[1767195190038,3.19392637,125.11,125.08,8.7175589]
[1767195190239,3.19392637,125.12,125.08,0.72268584]
[1767195190449,14.6,125.14,125.09,3.19392637]
[1767195190624,103.3,125.16,125.1,0.72268584]
[1767195190625,14.6,125.16,125.1,0.72268584]
[1767195190825,3.19392637,125.14,125.1,0.72268584]
[1767195191022,0.68257548,125.15,125.1,3.91661221]
[1767195191251,3.19392637,125.15,125.12,0.72268584]
[1767195191447,3.19392637,125.14,125.09,0.72268584]
[1767195191651,3.19392637,125.14,125.1,0.72268584]
[1767195192239,3.19392637,125.14,125.11,0.72268584]
[1767195193452,3.19392637,125.16,125.12,0.72268584]
[1767195193667,3.19392637,125.15,125.12,0.72268584]
[1767195194346,0.68257548,125.16,125.12,0.72268584]
[1767195194749,3.19392637,125.14,125.12,0.72268584]
[1767195195443,0.68257548,125.16,125.12,0.72268584]
[1767195195652,3.19392637,125.14,125.12,0.72268584]
[1767195199537,0.68257548,125.16,125.12,0.72268584]
[1767195199738,3.19392637,125.15,125.12,8.71499455]
[1767195200863,3.19392637,125.14,125.12,0.72268584]
[1767195202963,15.26778447,125.17,125.13,0.70174262]
[1767195203164,3.19392637,125.16,125.13,0.70174262]
[1767195203661,3.19392637,125.14,125.12,0.70174262]
[1767195204252,0.66778447,125.16,125.12,0.70174262]
[1767195204253,3.19392637,125.13,125.12,0.70174262]
[1767195205468,3.19392637,125.13,125.09,27.97870698]
[1767195207359,3.19392637,125.13,125.1,8.69492808]
[1767195207564,3.19392637,125.13,125.11,0.70174262]
[1767195209669,0.66778447,125.15,125.12,0.70174262]
[1767195209969,5.65873458,125.15,125.12,0.70174262]
[1767195210654,0.66778447,125.15,125.12,8.69405164]
[1767195210849,5.65873458,125.15,125.12,8.69405164]
[1767195211073,0.66778447,125.15,125.12,8.69405164]
[1767195211248,14.6,125.17,125.13,0.70174262]
[1767195211444,4.99095011,125.16,125.13,0.70174262]
[1767195212066,4.99095011,125.18,125.14,0.70174262]
[1767195212368,8.35013837,125.19,125.14,0.70174262]
[1767195212576,4.99095011,125.17,125.14,0.70174262]
[1767195213084,4.99095011,125.17,125.14,7.99075656]
[1767195213284,0.66778447,125.19,125.15,0.70174262]
[1767195213463,4.99095011,125.17,125.15,0.70174262]
[1767195213649,4.96095011,125.17,125.15,0.70174262]
[1767195214447,0.66778447,125.19,125.15,0.70174262]
[1767195214647,4.99095011,125.18,125.15,0.70174262]
[1767195214848,15.26778447,125.2,125.15,0.70174262]
[1767195215043,4.99095011,125.18,125.15,0.70174262]
[1767195215277,4.99095011,125.17,125.15,0.70174262]
[1767195215569,4.99095011,125.18,125.15,0.70174262]
[1767195216571,15.26778447,125.2,125.15,7.9903993]
[1767195216757,4.99095011,125.18,125.16,0.70174262]
[1767195217467,0.66778447,125.19,125.16,0.70174262]
[1767195217766,4.99095011,125.18,125.16,0.70174262]
[1767195217958,0.66778447,125.19,125.16,0.70174262]
[1767195218172,5.65873458,125.17,125.14,0.70174262]
[1767195218377,5.65873458,125.17,125.13,0.70174262]
[1767195218378,4.99095011,125.15,125.13,0.70174262]
[1767195218577,4.99095011,125.16,125.13,0.70174262]
[1767195218879,15.26778447,125.2,125.15,0.70174262]
[1767195219084,4.99095011,125.19,125.15,0.70174262]
[1767195219303,4.99095011,125.19,125.15,8.69198586]
[1767195219461,4.99095011,125.18,125.16,0.70174262]
[1767195220881,16.33560036,125.23,125.16,0.70174262]
[1767195220882,0.66778447,125.21,125.16,0.70174262]
[1767195221055,4.99095011,125.17,125.16,0.70174262]
[1767195221977,0.66778447,125.19,125.16,0.70174262]
[1767195222178,4.99095011,125.17,125.16,0.70174262]
[1767195223051,4.99095011,125.18,125.16,0.70174262]
[1767195224967,0.66778447,125.2,125.16,0.70174262]
[1767195225168,4.99095011,125.18,125.16,0.70174262]
[1767195225483,4.99095011,125.17,125.13,0.70174262]
[1767195225682,4.99095011,125.17,125.15,0.70174262]
[1767195225853,0.66778447,125.19,125.15,0.70174262]
[1767195226054,4.99095011,125.17,125.15,0.70174262]
[1767195226882,122.89095011,125.22,125.15,8.69206497]
[1767195227078,4.99095011,125.2,125.17,0.70174262]
[1767195228682,0.66778447,125.21,125.17,0.70174262]
[1767195228881,4.99095011,125.21,125.17,0.70174262]
[1767195229695,103.96778447,125.22,125.17,0.70174262]
[1767195229990,4.99095011,125.21,125.17,0.70174262]
[1767195230291,4.99095011,125.2,125.17,0.70174262]
[1767195231675,0.66778447,125.21,125.17,0.70174262]
[1767195232090,4.99095011,125.2,125.17,0.70174262]
[1767195232971,4.99095011,125.19,125.15,14.6]
[1767195233170,4.99095011,125.18,125.15,15.27241476]
[1767195233366,4.99095011,125.19,125.16,0.67241476]
[1767195234677,4.99095011,125.19,125.17,0.67241476]
[1767195234872,0.69978481,125.2,125.17,0.67241476]
[1767195235071,5.69073492,125.2,125.17,0.67241476]
[1767195235985,0.69978481,125.2,125.17,0.67241476]
[1767195236188,5.69073492,125.2,125.17,0.67241476]
[1767195237101,4.99095011,125.19,125.17,0.67241476]
[1767195237491,4.99095011,125.18,125.17,0.67241476]
[1767195237687,4.99095011,125.18,125.15,22.59010623]
[1767195237898,4.99095011,125.18,125.16,0.67241476]
[1767195238373,4.96095011,125.18,125.16,0.67241476]
[1767195238570,5.69073492,125.19,125.16,0.67241476]
[1767195239800,4.99095011,125.17,125.14,0.67241476]
[1767195240181,0.69978481,125.17,125.14,0.67241476]
[1767195240687,4.99095011,125.16,125.1,19.98272574]
[1767195240896,4.99095011,125.15,125.12,7.99214102]
[1767195241196,5.69073492,125.16,125.13,0.67241476]
[1767195241399,4.99095011,125.15,125.11,7.99263455]
[1767195241589,0.69978481,125.16,125.12,0.67241476]
[1767195241787,4.99095011,125.15,125.12,0.67241476]
[1767195241996,9.98190022,125.15,125.12,0.67241476]
[1767195242299,4.99095011,125.14,125.11,0.67241476]
[1767195242503,4.99095011,125.15,125.12,8.66466583]
[1767195242708,4.99095011,125.15,125.12,0.67241476]
[1767195242876,9.98190022,125.15,125.12,0.67241476]
[1767195243076,10.68168503,125.15,125.12,0.67241476]
[1767195243277,5.69073492,125.14,125.11,0.67241476]
[1767195243608,10.68168503,125.15,125.11,8.6653482]
[1767195244480,5.69073492,125.15,125.11,8.6653482]
[1767195244679,5.69073492,125.15,125.13,4.99095011]
[1767195244680,4.26595011,125.15,125.13,4.99095011]
[1767195245001,5.69073492,125.17,125.13,0.67241476]
[1767195245698,139.22729648,125.22,125.14,0.67241476]
[1767195245699,4.99095011,125.18,125.14,0.67241476]
[1767195245905,5.69073492,125.18,125.14,0.67241476]
[1767195246301,0.69978481,125.18,125.14,8.66324567]
[1767195246481,5.69073492,125.18,125.14,8.66324567]
[1767195247002,4.99095011,125.17,125.14,8.66324567]
[1767195247782,5.69073492,125.17,125.14,8.66324567]
[1767195247979,5.69073492,125.16,125.13,7.9915522]
[1767195248183,4.99095011,125.15,125.13,7.9915522]
[1767195248705,5.69073492,125.16,125.13,7.9915522]
[1767195249888,4.99095011,125.15,125.12,15.27241476]
[1767195250089,4.99095011,125.14,125.1,23.26571499]
[1767195250603,4.99095011,125.14,125.11,8.66535035]
[1767195250806,5.69073492,125.15,125.11,8.66535035]
[1767195250978,4.99095011,125.16,125.12,8.66465656]
[1767195251184,5.69073492,125.16,125.12,8.66465656]
[1767195251593,4.99095011,125.16,125.13,0.67241476]
[1767195251905,5.69073492,125.17,125.13,8.66388221]
[1767195252202,0.69978481,125.16,125.13,8.66388221]
[1767195253809,5.69073492,125.16,125.12,8.66443787]
[1767195253983,4.99095011,125.15,125.12,8.66443787]
[1767195254189,0.69978481,125.16,125.13,0.67241476]
[1767195254383,5.69073492,125.16,125.13,0.67241476]
[1767195255987,5.69073492,125.18,125.13,7.99121865]
[1767195256203,4.99095011,125.16,125.13,8.66363341]
[1767195256396,5.69073492,125.17,125.13,23.26363341]
[1767195256595,5.69073492,125.17,125.13,28.25458352]
[1767195256789,5.69073492,125.17,125.13,23.26363341]
[1767195256989,0.69978481,125.22,125.16,5.66336487]
[1767195257189,5.69073492,125.2,125.16,5.66336487]
[1767195257409,0.69978481,125.2,125.16,5.66336487]
[1767195257789,5.69073492,125.2,125.16,5.66336487]
[1767195258193,5.69073492,125.2,125.16,8.66187857]
[1767195258596,0.69978481,125.2,125.16,8.66187857]
[1767195258899,5.69073492,125.2,125.16,8.66187857]
[1767195259113,0.69978481,125.2,125.16,8.66187857]
[1767195259298,5.69073492,125.2,125.16,8.66187857]
[1767195260617,0.69978481,125.2,125.16,8.66187857]
[1767195260808,5.69073492,125.2,125.16,8.66187857]
[1767195261825,5.69073492,125.2,125.17,0.71843248]
[1767195263219,4.99095011,125.19,125.16,8.70789629]
[1767195265011,5.70229074,125.19,125.15,0.71843248]
[1767195266101,4.99095011,125.18,125.15,0.71843248]
[1767195266613,5.70229074,125.18,125.14,22.5905318]
[1767195266799,0.71134063,125.17,125.14,22.5905318]
[1767195266993,0.71134063,125.17,125.14,23.30896428]
[1767195267298,5.70229074,125.18,125.14,23.30896428]